[Event "FIN-ch Women 2018"]
[Site "Helsinki"]
[Date "2018.06.11"]
[Round "1"]
[White "Norlamo, Sarabella"]
[Black "Walta, Paivi"]
[Result "1-0"]
[ECO "A53"]
[WhiteElo "1847"]
[BlackElo "1634"]
[Annotator "NA"]
[PlyCount "75"]
[EventDate "2018.06.13"]
[EventType "tourn"]
[EventCountry "FIN"]
[SourceTitle "playchess.com"]
[Source "ChessBase"]
[SourceQuality "1"]
[TimeControl "40/5400+30:1800+30"]

1. d4 {[%emt 0:00:00]} Nf6 {[%emt 0:00:08]} 2. c4 {[%emt 0:00:00]} d6 {[%emt 0:00:16]} 3. Nf3 {[%emt 0:00:00]} g6 {[%emt 0:00:35]} 4. Nc3 {[%emt 0:00:00]} Bf5 {[%emt 0:00:28]} 5. Qb3 {[%emt 0:05:58]} b6 {[%emt 0:00:39] E61: King's Indian: Early deviations for White, including Smyslov System} (5... Qc8 6. Nh4 Bd7 7. e4 Nc6 8. Nf3 e5 9. d5 Nd4 10. Qd1 Bg4 11. Be3 Bxf3 12. gxf3 Bg7 13. f4 {½-½ (47) Wang,H (2734)-Svidler,P (2759) Almaty 2016}) 6. g3 {[%emt 0:10:52]} Bg7 {[%emt 0:01:25]} 7. Bg2 {[%emt 0:01:43]} c6 $146 {[%emt 0:01:36]} ({Predecessor:} 7... Nc6 8. Qa4 Bd7 9. Qd1 e5 10. O-O O-O 11. d5 Ne7 12. e4 Qc8 13. Ne1 {0-1 (56) Mchedlishvili,M (2609)-Ipatov,A (2652) Baku 2016}) 8. Nh4 {[%emt 0:05:48]} Bd7 {[%emt 0:00:48]} 9. O-O {[%emt 0:03:23]} O-O {[%emt 0:00:30]} 10. Nf3 {[%emt 0:05:44]} Re8 {[%emt 0:05:34]} 11. Rd1 {[%emt 0:03:36]} Na6 {[%emt 0:11:03]} 12. Bf4 {[%emt 0:08:57]} Nh5 {[%emt 0:08:02]} 13. Be3 {[%emt 0:00:40]} Rb8 {[%emt 0:04:44]} 14. Qc2 {[%emt 0:05:37]} Bf5 {[%emt 0:09:54]} 15. Qa4 {[%emt 0:08:05]} Qc8 {[%emt 0:01:02]} 16. Nh4 {[%emt 0:05:45]} Bd7 {[%emt 0:00:14]} 17. Qc2 {[%emt 0:00:08]} Nc7 {[%emt 0:12:00]} 18. Rac1 {[%emt 0:03:53]} a5 {[%emt 0:09:24]} 19. d5 {[%emt 0:04:30]} c5 {[%emt 0:00:54]} 20. Bd2 {[%emt 0:01:27]} Bh3 {[%emt 0:03:28]} 21. Ne4 {[%emt 0:04:30]} Bxg2 {[%emt 0:02:36]} 22. Nxg2 {[%emt 0:00:10]} f5 {[%emt 0:01:39]} 23. Ng5 {[%emt 0:01:27]} Rf8 {[%emt 0:01:25]} 24. e3 {[%emt 0:04:32]} h6 {[%emt 0:02:05]} 25. Nf3 {[%emt 0:01:10]} g5 {[%emt 0:01:04]} 26. Bc3 {[%emt 0:02:27]} Nf6 {[%emt 0:00:12]} 27. Nd2 {[%emt 0:00:49]} (27. h4 $5 {[%cal Rh4g5]}) 27... Qd7 {[%emt 0:04:37]} 28. Qd3 $11 {[%emt 0:02:12]} (28. Rf1 $16) 28... a4 {[%emt 0:03:00]} 29. e4 {[%emt 0:01:28]} fxe4 {[%emt 0:00:21]} 30. Nxe4 {[%emt 0:00:08]} Nce8 {[%emt 0:02:28]} 31. Re1 {[%emt 0:02:07]} Rf7 {[%emt 0:01:31]} 32. Rc2 {[%emt 0:02:47]} Qh3 {[%emt 0:04:26]} 33. Nxf6+ {[%emt 0:02:03]} Nxf6 {[%emt 0:00:09]} 34. Ne3 {[%emt 0:01:42]} Rbf8 {[%emt 0:00:24]} 35. Qf5 {[%emt 0:01:12]} Qh5 {[%emt 0:01:38]} 36. Qe6 {[%emt 0:01:03]} Kh8 {[%emt 0:04:10]} 37. Rce2 {[%emt 0:00:56]} Qf3 {[%emt 0:03:54]} 38. Qf5 {[%emt 0:01:08]} 1-0

[Event "FIN-ch Women 2018"]
[Site "Helsinki"]
[Date "2018.06.11"]
[Round "1"]
[White "Turunen, Tiina"]
[Black "Ristoja, Aulikki"]
[Result "1-0"]
[ECO "D00"]
[WhiteElo "1665"]
[BlackElo "1565"]
[Annotator "NA"]
[PlyCount "167"]
[EventDate "2018.06.13"]
[EventType "tourn"]
[EventCountry "FIN"]
[SourceTitle "playchess.com"]
[Source "ChessBase"]
[SourceQuality "1"]
[TimeControl "40/5400+30:1800+30"]

1. d4 {[%emt 0:00:00]} d5 {[%emt 0:00:13]} 2. Bf4 {[%emt 0:00:00]} Bf5 {[%emt 0:01:41]} 3. Nf3 {[%emt 0:01:12]} h6 {[%emt 0:01:34]} 4. h3 {[%emt 0:02:02]} Nd7 {[%emt 0:03:45]} 5. e3 {[%emt 0:00:55]} e6 {[%emt 0:02:13]} 6. Bd3 {[%emt 0:00:22]} Bxd3 {[%emt 0:01:20]} 7. Qxd3 {[%emt 0:00:20]} Ngf6 {[%emt 0:01:21]} 8. Nbd2 {[%emt 0:01:03]} c5 {[%emt 0:01:14]} 9. c3 {[%emt 0:01:01]} c4 {[%emt 0:01:45]} 10. Qc2 {[%emt 0:00:11]} b5 {[%emt 0:02:14]} 11. e4 {[%emt 0:00:16]} g5 {[%emt 0:04:14]} 12. Be5 {[%emt 0:01:58]} Nxe5 {[%emt 0:03:02]} 13. Nxe5 {[%emt 0:00:17]} Bg7 {[%emt 0:01:21]} 14. O-O {[%emt 0:04:01]} Qc7 {[%emt 0:02:17]} 15. exd5 {[%emt 0:04:27]} Nxd5 {[%emt 0:01:50]} 16. Rae1 {[%emt 0:00:21]} Nf4 {[%emt 0:01:24]} 17. Qe4 {[%emt 0:02:39]} O-O {[%emt 0:01:12]} 18. Nef3 {[%emt 0:05:02]} Nd3 {[%emt 0:00:59]} 19. Rb1 {[%emt 0:00:38]} a6 {[%emt 0:00:49]} 20. Ne1 {[%emt 0:00:13]} Nf4 {[%emt 0:00:37]} 21. Ndf3 {[%emt 0:01:15]} Rad8 {[%emt 0:00:47]} 22. Nc2 {[%emt 0:00:50]} f5 {[%emt 0:00:58]} 23. Qe3 {[%emt 0:03:07]} Rfe8 {[%emt 0:00:34]} 24. Rfe1 {[%emt 0:01:06]} Nd3 {[%emt 0:00:39]} 25. Re2 {[%emt 0:00:46]} Nf4 {[%emt 0:00:38]} 26. Rd2 {[%emt 0:00:52]} Nd5 {[%emt 0:00:27]} 27. Qe1 {[%emt 0:00:52]} Nf4 {[%emt 0:00:34]} 28. Ne3 {[%emt 0:01:45]} Qb7 {[%emt 0:00:59]} 29. Kh2 {[%emt 0:00:59]} Qc7 {[%emt 0:00:23]} 30. g3 {[%emt 0:00:34]} Nd3 {[%emt 0:00:12]} 31. Qf1 {[%emt 0:02:23]} f4 {[%emt 0:00:02]} 32. Ng4 {[%emt 0:00:48]} fxg3+ {[%emt 0:00:24]} 33. fxg3 {[%emt 0:00:29]} Rf8 {[%emt 0:00:33]} 34. Qe2 {[%emt 0:00:26]} Qc6 {[%emt 0:00:42]} 35. Rf1 {[%emt 0:00:30]} Rf5 {[%emt 0:00:46]} 36. Ne1 {[%emt 0:02:53]} Rxf1 {[%emt 0:00:47]} 37. Qxf1 {[%emt 0:00:30]} Nxe1 {[%emt 0:00:15]} 38. Qxe1 {[%emt 0:00:14]} Qd6 {[%emt 0:00:55]} 39. Re2 {[%emt 0:00:25]} Re8 {[%emt 0:00:42]} 40. Ne5 {[%emt 0:00:00]} b4 {[%emt 0:01:53]} 41. Qf2 {[%emt 0:01:01]} Rf8 {[%emt 0:01:13]} 42. Qe3 {[%emt 0:00:55]} bxc3 {[%emt 0:06:37]} 43. bxc3 {[%emt 0:00:53]} Qd5 {[%emt 0:05:48]} 44. Ng4 {[%emt 0:04:38]} Re8 {[%emt 0:04:05]} 45. Qe4 {[%emt 0:02:28]} Qxe4 {[%emt 0:00:39]} 46. Rxe4 {[%emt 0:00:14]} Kf7 {[%emt 0:00:59]} 47. Ne5+ {[%emt 0:00:46]} Bxe5 48. Rxe5 Rb8 {[%emt 0:02:48]} 49. Ra5 {[%emt 0:01:20]} Rb2+ {[%emt 0:00:22]} 50. Kg1 {[%emt 0:00:38]} Rc2 {[%emt 0:01:56]} 51. Ra3 {[%emt 0:00:09]} Kf6 {[%emt 0:01:08]} 52. g4 {[%emt 0:00:56]} e5 {[%emt 0:00:39]} 53. Rxa6+ {[%emt 0:01:16]} Kg7 {[%emt 0:00:35]} 54. dxe5 {[%emt 0:00:46]} Rxc3 {[%emt 0:00:35]} 55. Ra7+ {[%emt 0:01:22]} Kg6 {[%emt 0:01:02]} 56. e6 {[%emt 0:00:29]} Re3 {[%emt 0:02:04]} 57. Rc7 {[%emt 0:00:33]} Rxe6 {[%emt 0:01:03]} 58. Rxc4 {[%emt 0:00:22]} Ra6 {[%emt 0:00:46]} 59. a4 {[%emt 0:00:32]} h5 {[%emt 0:01:32]} 60. Kg2 {[%emt 0:00:26]} h4 {[%emt 0:00:44]} 61. Kf3 {[%emt 0:01:41]} Kf6 {[%emt 0:01:25]} 62. Ke4 {[%emt 0:00:17]} Ke6 {[%emt 0:01:38]} 63. Kd4 {[%emt 0:00:27]} Kd6 {[%emt 0:00:42]} 64. Kc3 {[%emt 0:01:34]} Kd5 {[%emt 0:00:42]} 65. Kb3 {[%emt 0:01:01]} Ra7 {[%emt 0:01:44]} 66. Rb4 {[%emt 0:00:18]} Ra5 {[%emt 0:01:28]} 67. Rb5+ {[%emt 0:00:30]} Rxb5+ {[%emt 0:00:05]} 68. axb5 {[%emt 0:00:25]} Kc5 {[%emt 0:00:03]} 69. Ka4 {[%emt 0:00:18]} Kb6 {[%emt 0:00:24]} 70. Kb4 {[%emt 0:00:09]} Kb7 71. Kc5 {[%emt 0:00:19]} Kc7 {[%emt 0:01:35]} 72. Kd5 {[%emt 0:00:23]} Kb6 {[%emt 0:00:33]} 73. Ke5 {[%emt 0:00:08]} Kxb5 {[%emt 0:00:11]} 74. Kf5 {[%emt 0:00:12]} Kc6 {[%emt 0:00:09]} 75. Kxg5 {[%emt 0:00:11]} Kd6 {[%emt 0:00:08]} 76. Kxh4 {[%emt 0:00:11]} Ke6 {[%emt 0:00:05]} 77. Kg5 {[%emt 0:00:20]} Kf7 {[%emt 0:00:06]} 78. Kf5 {[%emt 0:00:33]} Kg7 {[%emt 0:00:08]} 79. h4 {[%emt 0:01:16]} Kh6 {[%emt 0:00:24]} 80. Kf6 {[%emt 0:00:19]} Kh7 {[%emt 0:00:09]} 81. g5 {[%emt 0:00:21]} Kh8 {[%emt 0:00:23]} 82. Kf7 {[%emt 0:00:15]} Kh7 {[%emt 0:00:26]} 83. g6+ {[%emt 0:00:08]} Kh8 {[%emt 0:00:04]} 84. g7+ {[%emt 0:00:10]} 1-0

[Event "FIN-ch Women 2018"]
[Site "Helsinki"]
[Date "2018.06.11"]
[Round "1"]
[White "Al Argha, Fatima"]
[Black "Al Najar, Huda"]
[Result "0-1"]
[ECO "A45"]
[WhiteElo "1436"]
[BlackElo "1719"]
[Annotator "NA"]
[PlyCount "104"]
[EventDate "2018.06.13"]
[EventType "tourn"]
[EventCountry "FIN"]
[SourceTitle "playchess.com"]
[Source "ChessBase"]
[SourceQuality "1"]
[TimeControl "40/5400+30:1800+30"]

1. d4 {[%emt 0:00:00]} Nf6 {[%emt 0:00:06]} 2. Bf4 {[%emt 0:00:00]} e6 3. e3 d6 {[%emt 0:03:01]} 4. Bd3 {[%emt 0:01:08]} Nbd7 {[%emt 0:00:27]} 5. Nf3 {[%emt 0:01:17]} g6 {[%emt 0:01:26]} 6. Nbd2 {[%emt 0:01:12]} Bg7 {[%emt 0:00:18]} 7. c4 {[%emt 0:00:58]} Qe7 {[%emt 0:01:24]} 8. h3 {[%emt 0:01:43]} e5 {[%emt 0:04:14]} 9. dxe5 {[%emt 0:03:19]} dxe5 {[%emt 0:00:36]} 10. Bg5 {[%emt 0:01:29]} h6 {[%emt 0:00:27]} 11. Bxf6 {[%emt 0:00:46]} Bxf6 {[%emt 0:01:08]} 12. Qc2 {[%emt 0:04:57]} Nc5 {[%emt 0:01:14]} 13. O-O {[%emt 0:02:22]} O-O {[%emt 0:01:34]} 14. Ne4 {[%emt 0:13:02]} Bg7 {[%emt 0:01:10]} 15. Nxc5 {[%emt 0:00:50]} Qxc5 {[%emt 0:00:02]} 16. e4 {[%emt 0:00:54]} Be6 {[%emt 0:03:32]} 17. a3 {[%emt 0:00:39]} a5 {[%emt 0:02:15]} 18. Rab1 {[%emt 0:00:38]} b6 {[%emt 0:01:16]} 19. b4 {[%emt 0:06:37]} axb4 {[%emt 0:04:17]} 20. axb4 {[%emt 0:01:48]} Qe7 {[%emt 0:01:51]} 21. c5 {[%emt 0:07:58]} Ra2 {[%emt 0:02:51]} 22. Qc3 {[%emt 0:01:28]} Rfa8 {[%emt 0:04:27]} 23. cxb6 {[%emt 0:06:48]} cxb6 {[%emt 0:01:29]} 24. Bc4 {[%emt 0:00:21]} Rc8 {[%emt 0:05:52]} 25. Nd2 {[%emt 0:02:51]} b5 {[%emt 0:04:12]} 26. Rfc1 {[%emt 0:08:52]} bxc4 {[%emt 0:00:16]} 27. b5 {[%emt 0:00:18]} Qb7 {[%emt 0:00:48]} 28. Qb4 {[%emt 0:02:27]} Qb6 {[%emt 0:02:40]} 29. Rb2 {[%emt 0:04:14]} Rxb2 {[%emt 0:01:46]} 30. Qxb2 {[%emt 0:00:06]} c3 {[%emt 0:00:43]} 31. Rxc3 {[%emt 0:00:50]} Rxc3 {[%emt 0:00:10]} 32. Qxc3 {[%emt 0:00:03]} Qxb5 {[%emt 0:00:18]} 33. Qa1 {[%emt 0:01:50]} Qd3 {[%emt 0:04:28]} 34. Qa8+ {[%emt 0:00:50]} Kh7 {[%emt 0:00:08]} 35. Nf3 {[%emt 0:00:57]} Bxh3 {[%emt 0:03:02]} 36. Nxe5 {[%emt 0:02:48]} Qd1+ {[%emt 0:01:28]} 37. Kh2 {[%emt 0:00:12]} Be6 {[%emt 0:00:12]} 38. Nf3 {[%emt 0:00:30]} Qe2 {[%emt 0:01:45]} 39. Kg3 {[%emt 0:00:45]} Qd3 {[%emt 0:01:12]} 40. Kh2 {[%emt 0:00:47]} Qb5 {[%emt 0:31:32]} 41. g3 {[%emt 0:02:49]} Qe2 {[%emt 0:00:00]} 42. Kg2 {[%emt 0:00:44]} Bh3+ {[%emt 0:00:00]} 43. Kxh3 {[%emt 0:00:18]} Qxf3 {[%emt 0:00:00]} 44. Qe8 {[%emt 0:00:18]} Qxf2 {[%emt 0:00:00]} 45. e5 {[%emt 0:00:14]} Qf5+ {[%emt 0:00:00]} 46. Kg2 {[%emt 0:01:04]} Bxe5 {[%emt 0:00:00]} 47. Qe7 {[%emt 0:00:53]} Qe4+ {[%emt 0:00:00]} 48. Kh3 {[%emt 0:00:14]} Qh1+ {[%emt 0:00:00]} 49. Kg4 {[%emt 0:00:07]} h5+ {[%emt 0:00:00]} 50. Kg5 {[%emt 0:00:37]} Qc1+ {[%emt 0:00:00]} 51. Kh4 {[%emt 0:00:12]} Qc4+ {[%emt 0:00:00]} 52. Kg5 {[%emt 0:00:27]} Qg4# {[%emt 0:00:00]} 0-1

[Event "FIN-ch Women 2018"]
[Site "Helsinki"]
[Date "2018.06.11"]
[Round "1"]
[White "Al-Hamoud, Lyal"]
[Black "Pelander, Pauliina"]
[Result "0-1"]
[ECO "B40"]
[WhiteElo "1382"]
[BlackElo "1610"]
[Annotator "NA"]
[PlyCount "58"]
[EventDate "2018.06.13"]
[EventType "tourn"]
[EventCountry "FIN"]
[SourceTitle "playchess.com"]
[Source "ChessBase"]
[SourceQuality "1"]
[TimeControl "40/5400+30:1800+30"]

1. e4 {[%emt 0:00:00]} c5 {[%emt 0:00:16]} 2. Nf3 e6 {[%emt 0:00:10]} 3. Nc3 {[%emt 0:01:42]} a6 {[%emt 0:00:14]} 4. a3 {[%emt 0:03:07]} b5 {[%emt 0:02:42]} 5. d4 {[%emt 0:01:03]} Nf6 {[%emt 0:00:28]} 6. Bd2 b4 {[%emt 0:00:04]} 7. axb4 {[%emt 0:00:51]} cxb4 8. Na2 {[%emt 0:00:54]} Nxe4 {[%emt 0:01:03]} 9. Bxb4 {[%emt 0:00:08]} Bxb4+ {[%emt 0:00:27]} 10. Nxb4 {[%emt 0:01:12]} Qb6 {[%emt 0:01:34]} 11. Nd3 {[%emt 0:02:18]} Nc6 {[%emt 0:01:42]} 12. c3 {[%emt 0:02:23]} Bb7 {[%emt 0:04:20]} 13. Be2 Ne7 {[%emt 0:01:27]} 14. O-O {[%emt 0:03:15]} Nf5 {[%emt 0:06:28]} 15. Qc1 g5 16. Nxg5 {[%emt 0:09:24]} Rg8 {[%emt 0:00:41]} 17. Nf3 {[%emt 0:01:47]} Nf6 18. g3 {[%emt 0:02:12]} h5 {[%emt 0:09:37]} 19. h4 {[%emt 0:08:34]} Qc7 20. Qf4 d6 {[%emt 0:07:46]} 21. Kh2 {[%emt 0:01:18]} Rg4 {[%emt 0:03:15]} 22. Qc1 {[%emt 0:04:19]} Rg7 {[%emt 0:08:11]} 23. Qd1 Ng4+ {[%emt 0:03:15]} 24. Kh3 {[%emt 0:02:38]} Qe7 {[%emt 0:04:02]} 25. Nf4 {[%emt 0:02:40]} Bxf3 {[%emt 0:02:18]} 26. Bxf3 {[%emt 0:00:32]} Nxf2+ 27. Rxf2 {[%emt 0:05:54]} Rxg3+ {[%emt 0:01:12]} 28. Kh2 {[%emt 0:00:04]} Qxh4+ {[%emt 0:00:18]} 29. Nh3 {[%emt 0:00:26]} Qxh3# 0-1

[Event "FIN-ch Women 2018"]
[Site "Helsinki"]
[Date "2018.06.12"]
[Round "2"]
[White "Norlamo, Sarabella"]
[Black "Al-Hamoud, Lyal"]
[Result "1-0"]
[ECO "A04"]
[WhiteElo "1847"]
[BlackElo "1382"]
[Annotator "NA"]
[PlyCount "57"]
[EventDate "2018.06.13"]
[EventType "tourn"]
[EventCountry "FIN"]
[SourceTitle "playchess.com"]
[Source "ChessBase"]
[SourceQuality "1"]
[TimeControl "40/5400+30:1800+30"]

1. Nf3 {[%emt 0:00:00]} Nc6 {[%emt 0:00:14]} 2. d4 {[%emt 0:00:00]} Nf6 {[%emt 0:00:11]} 3. c4 {[%emt 0:00:01]} d5 {[%emt 0:00:54]} 4. cxd5 {[%emt 0:00:11]} Qxd5 {[%emt 0:00:55]} 5. Nc3 {[%emt 0:00:07] LiveBook: 6 Games D07: Damengambit (Tschigorin-Verteidigung)} Qd8 {[%emt 0:00:48]} 6. d5 {[%emt 0:01:32]} (6. Bf4 Bf5 7. e3 {½-½ (7) Milchev,N (2421)-Malakhatko,V (2530) Plancoet 2012}) 6... Nb4 {[%emt 0:02:30]} 7. Qa4+ {[%emt 0:00:35]} Qd7 {[%emt 0:03:15]} 8. Qxb4 {[%emt 0:00:24]} Nxd5 {[%emt 0:01:18]} 9. Nxd5 {[%emt 0:01:11]} Qxd5 {[%emt 0:00:23]} 10. Qd4 $146 {[%emt 0:01:02]} ({Vorgänger:} 10. e4 e5 11. Qxf8+ Rxf8 12. exd5 {1-0 (26) Heck,E (1743)-Hingst,D Troisdorf 2001}) 10... Qxd4 {[%emt 0:01:01]} 11. Nxd4 {[%emt 0:00:02]} e5 {[%emt 0:00:26]} 12. Nb5 {[%emt 0:00:26]} Bb4+ {[%emt 0:01:55]} 13. Bd2 {[%emt 0:00:31]} Bxd2+ {[%emt 0:00:20]} 14. Kxd2 {[%emt 0:00:06]} O-O {[%emt 0:00:04]} (14... Kd7 {keeps fighting.} 15. e4 c6) 15. Nxc7 {[%emt 0:01:16]} Rb8 {[%emt 0:00:19]} 16. e4 {[%emt 0:00:30]} Rd8+ {[%emt 0:00:41]} 17. Ke3 {[%emt 0:00:11]} a6 $18 {[%emt 0:01:53]} 18. Be2 {[%emt 0:00:57]} g6 {[%emt 0:03:49]} 19. Rhd1 {[%emt 0:00:23]} Bd7 {[%emt 0:02:20]} 20. Nd5 {[%emt 0:00:10]} Kg7 {[%emt 0:02:23]} 21. Nb6 {[%emt 0:00:18]} Be6 {[%emt 0:00:52]} 22. Bc4 {[%emt 0:01:58]} Bxc4 {[%emt 0:01:29]} 23. Nxc4 {[%emt 0:00:17]} f5 {[%emt 0:00:20]} 24. Nxe5 {[%emt 0:03:08]} Re8 {[%emt 0:01:22]} 25. f4 {[%emt 0:00:11]} g5 {[%emt 0:01:34]} 26. g3 {[%emt 0:01:14]} gxf4+ {[%emt 0:00:29]} 27. gxf4 {[%emt 0:00:07]} fxe4 {[%emt 0:00:11]} 28. Rg1+ {[%emt 0:00:54]} Kh8 {[%emt 0:00:51]} 29. Nf7# {[%emt 0:00:10]} 1-0

[Event "FIN-ch Women 2018"]
[Site "Helsinki"]
[Date "2018.06.12"]
[Round "2"]
[White "Al Najar, Huda"]
[Black "Turunen, Tiina"]
[Result "1-0"]
[ECO "B10"]
[WhiteElo "1719"]
[BlackElo "1665"]
[Annotator "NA"]
[PlyCount "59"]
[EventDate "2018.06.13"]
[EventType "tourn"]
[EventCountry "FIN"]
[SourceTitle "playchess.com"]
[Source "ChessBase"]
[SourceQuality "1"]
[TimeControl "40/5400+30:1800+30"]

1. e4 {[%emt 0:00:00]} c6 {[%emt 0:00:17]} 2. Nf3 {[%emt 0:00:00]} d5 {[%emt 0:00:29]} 3. Nc3 {[%emt 0:00:00]} dxe4 {[%emt 0:00:18]} 4. Nxe4 {[%emt 0:00:00]} Nf6 {[%emt 0:00:12]} 5. Qe2 {[%emt 0:00:33]} Nxe4 {[%emt 0:00:34]} 6. Qxe4 {[%emt 0:00:06]} Nd7 {[%emt 0:00:26]} 7. Bc4 {[%emt 0:02:29]} Nf6 {[%emt 0:00:44]} 8. Qe2 {[%emt 0:01:59]} Bf5 {[%emt 0:01:14]} 9. d4 {[%emt 0:03:10]} e6 {[%emt 0:00:45]} 10. h3 {[%emt 0:02:37]} Be7 {[%emt 0:01:47]} 11. c3 {[%emt 0:04:14]} h6 {[%emt 0:00:31]} 12. Bf4 {[%emt 0:04:13]} Bd6 13. Ne5 {[%emt 0:01:51]} O-O {[%emt 0:03:39]} 14. g4 {[%emt 0:02:35]} Bh7 {[%emt 0:03:08]} 15. g5 {[%emt 0:00:15]} Nd5 {[%emt 0:00:51]} 16. Bxd5 {[%emt 0:08:10]} hxg5 {[%emt 0:04:40]} 17. Be4 {[%emt 0:05:07]} Bxe4 {[%emt 0:01:39]} 18. Qxe4 {[%emt 0:01:42]} gxf4 {[%emt 0:00:14]} 19. Rg1 {[%emt 0:02:12]} Qc7 {[%emt 0:04:41]} 20. Ng4 {[%emt 0:05:58]} Kh8 {[%emt 0:05:15]} 21. Qe2 {[%emt 0:00:51]} f5 {[%emt 0:01:34]} 22. Nh2 {[%emt 0:04:41]} Rf6 {[%emt 0:00:33]} 23. Nf3 {[%emt 0:02:54]} Re8 {[%emt 0:02:23]} 24. O-O-O {[%emt 0:03:09]} c5 {[%emt 0:07:02]} 25. dxc5 {[%emt 0:07:45]} Qxc5 {[%emt 0:00:41]} 26. Nd4 {[%emt 0:00:25]} Qb6 {[%emt 0:02:56]} 27. Qh5+ {[%emt 0:00:21]} Kg8 {[%emt 0:04:01]} 28. Qxe8+ {[%emt 0:00:09]} Bf8 {[%emt 0:00:14]} 29. Rg6 {[%emt 0:03:08]} Rxg6 {[%emt 0:02:05]} 30. Qxg6 {[%emt 0:00:03]} 1-0

[Event "FIN-ch Women 2018"]
[Site "Helsinki"]
[Date "2018.06.12"]
[Round "2"]
[White "Walta, Paivi"]
[Black "Dannenberg, Alia"]
[Result "0-1"]
[ECO "B01"]
[WhiteElo "1634"]
[BlackElo "1934"]
[Annotator "NA"]
[PlyCount "58"]
[EventDate "2018.06.13"]
[EventType "tourn"]
[EventCountry "FIN"]
[SourceTitle "playchess.com"]
[Source "ChessBase"]
[SourceQuality "1"]
[TimeControl "40/5400+30:1800+30"]

1. e4 {[%emt 0:00:00]} d5 {[%emt 0:00:02]} 2. exd5 {[%emt 0:00:00]} Qxd5 {[%emt 0:00:02]} 3. Nc3 {[%emt 0:00:02]} Qa5 {[%emt 0:00:03]} 4. d4 {[%emt 0:00:25]} Nf6 {[%emt 0:00:10]} 5. Bc4 {[%emt 0:00:44]} Bg4 {[%emt 0:00:27] LiveBook: 232 Games} 6. f3 {[%emt 0:00:36]} Bf5 {[%emt 0:00:58]} 7. Bd2 {[%emt 0:00:55]} Qb6 {[%emt 0:02:49]} 8. Nge2 {[%emt 0:04:14]} c6 {[%emt 0:02:18]} 9. O-O {[%emt 0:08:20]} (9. g4 $16 Bg6 10. h4) 9... e6 $11 {[%emt 0:02:54]} 10. Bf4 {[%emt 0:04:58]} Be7 {[%emt 0:09:10]} 11. g4 {[%emt 0:12:18]} Bg6 {[%emt 0:00:57]} 12. h4 {[%emt 0:00:44]} h6 {[%emt 0:01:58]} 13. Bg3 {[%emt 0:00:56]} Nbd7 {[%emt 0:02:56]} 14. Nf4 {[%emt 0:03:29]} Bh7 {[%emt 0:01:58]} 15. Qd2 {[%emt 0:04:08]} Bd6 {[%emt 0:19:22]} 16. Ng6 {[%emt 0:09:21]} Bxg3 {[%emt 0:05:40]} 17. Nxh8 {[%emt 0:00:22]} Ke7 {[%emt 0:01:14]} 18. Nxf7 {[%emt 0:03:11]} Kxf7 {[%emt 0:00:02]} 19. Ne4 {[%emt 0:08:14]} Bxh4 {[%emt 0:02:50]} 20. Nd6+ {[%emt 0:05:39]} Ke7 {[%emt 0:01:31]} 21. Nf5+ {[%emt 0:03:19]} exf5 {[%emt 0:03:30]} 22. Qe3+ {[%emt 0:01:20]} Kd8 {[%emt 0:00:50]} 23. Rad1 {[%emt 0:02:43]} Qc7 {[%emt 0:04:05]} 24. f4 {[%emt 0:01:37]} g5 {[%emt 0:01:52]} 25. Rd2 {[%emt 0:05:34]} gxf4 {[%emt 0:02:12]} 26. Qh3 {[%emt 0:02:23]} Bg5 {[%emt 0:01:15]} 27. gxf5 {[%emt 0:00:37]} Qa5 {[%emt 0:03:20]} 28. Re2 {[%emt 0:06:49]} Bxf5 {[%emt 0:01:45]} 29. Qb3 {[%emt 0:01:03]} Qb6 0-1

[Event "FIN-ch Women 2018"]
[Site "Helsinki"]
[Date "2018.06.12"]
[Round "2"]
[White "Pelander, Pauliina"]
[Black "Al Argha, Fatima"]
[Result "1-0"]
[ECO "B21"]
[WhiteElo "1610"]
[BlackElo "1436"]
[Annotator "NA"]
[PlyCount "49"]
[EventDate "2018.06.13"]
[EventType "tourn"]
[EventCountry "FIN"]
[SourceTitle "playchess.com"]
[Source "ChessBase"]
[SourceQuality "1"]
[TimeControl "40/5400+30:1800+30"]

1. e4 {[%emt 0:00:30]} c5 {[%emt 0:00:42]} 2. f4 {[%emt 0:00:53]} d6 {[%emt 0:00:45]} 3. Nf3 {[%emt 0:00:18]} Nf6 {[%emt 0:01:00]} 4. Nc3 {[%emt 0:00:20]} g6 {[%emt 0:00:53]} 5. Bc4 {[%emt 0:04:49]} Bg7 {[%emt 0:01:01]} 6. O-O {[%emt 0:01:52]} O-O {[%emt 0:01:10]} 7. d3 {[%emt 0:15:59]} Nc6 {[%emt 0:01:51]} 8. a3 {[%emt 0:01:46]} a6 {[%emt 0:03:46]} 9. Nh4 {[%emt 0:01:34]} b5 {[%emt 0:08:56]} 10. Ba2 {[%emt 0:00:10]} e6 {[%emt 0:02:58]} 11. f5 {[%emt 0:00:38]} Nxe4 {[%emt 0:04:42]} 12. Nxe4 {[%emt 0:04:28]} Qxh4 {[%emt 0:00:29]} 13. Bg5 {[%emt 0:03:23]} Qh5 {[%emt 0:02:50]} 14. g4 {[%emt 0:00:29]} Qh3 {[%emt 0:00:38]} 15. f6 {[%emt 0:00:39]} Ne5 {[%emt 0:20:49]} 16. fxg7 {[%emt 0:02:56]} Kxg7 {[%emt 0:06:21]} 17. Bf6+ {[%emt 0:03:42]} Kg8 {[%emt 0:00:13]} 18. Bxe5 {[%emt 0:02:27]} dxe5 {[%emt 0:00:06]} 19. Nf6+ {[%emt 0:01:05]} Kg7 {[%emt 0:00:56]} 20. Qe2 {[%emt 0:01:53]} Bb7 {[%emt 0:00:54]} 21. Rf2 {[%emt 0:00:32]} Rad8 {[%emt 0:04:57]} 22. Qxe5 {[%emt 0:00:51]} Kh6 {[%emt 0:00:26]} 23. g5+ {[%emt 0:00:25]} Kg7 {[%emt 0:00:33]} 24. Nh5+ {[%emt 0:00:14]} Kg8 {[%emt 0:00:28]} 25. Qg7# 1-0